bitfinex/quotes_SOLUSD_20251118
["timestamp","ask_amount","ask_price","bid_price","bid_amount"]
[1763426559792,0.69,129.82,129.77,9.78882769]
[1763426559991,0.69,129.82,129.77,19.34903484]
[1763426560293,0.69,129.82,129.79,9.78882769]
[1763426561201,0.69,129.82,129.78,9.78882769]
[1763426561391,0.69,129.82,129.76,6.44220417]
[1763426561593,0.69,129.82,129.78,9.56020715]
[1763426561996,0.69,129.82,129.8,9.78882769]
[1763426562513,0.69,129.82,129.8,19.34903484]
[1763426562701,0.69,129.82,129.8,9.56020715]
[1763426562900,9.56020715,129.89,129.82,9.78882769]
[1763426563211,9.56020715,129.86,129.81,9.78882769]
[1763426563719,2.0,129.91,129.81,9.56020715]
[1763426563720,0.66,129.85,129.81,9.56020715]
[1763426563892,0.66,129.85,129.8,19.34903484]
[1763426564314,10.22020715,129.85,129.8,9.56020715]
[1763426564833,10.22020715,129.84,129.79,19.34903484]
[1763426565301,10.22020715,129.83,129.79,9.78882769]
[1763426565503,10.22020715,129.83,129.78,9.56020715]
[1763426565707,10.22020715,129.82,129.76,9.56020715]
[1763426565908,9.56020715,129.8,129.73,6.44220417]
[1763426566105,0.66,129.81,129.76,9.56020715]
[1763426566505,9.56020715,129.8,129.75,9.56020715]
[1763426566706,0.66,129.81,129.74,9.56020715]
[1763426566918,10.22020715,129.8,129.74,9.56020715]
[1763426567203,10.22020715,129.8,129.72,6.44220417]
[1763426567418,0.66,129.8,129.77,9.78882769]
[1763426567646,10.22020715,129.8,129.77,9.78882769]
[1763426568319,9.56020715,129.82,129.77,9.56020715]
[1763426568835,10.22020715,129.81,129.76,9.78882769]
[1763426569002,9.56020715,129.77,129.73,9.78882769]
[1763426569205,0.66,129.79,129.72,19.76903484]
[1763426569408,9.56020715,129.78,129.72,9.78882769]
[1763426569608,9.56020715,129.77,129.74,9.78882769]
[1763426569818,10.22020715,129.78,129.74,9.78882769]
[1763426570022,9.56020715,129.8,129.76,9.56020715]
[1763426570328,9.56020715,129.8,129.77,9.78882769]
[1763426570628,0.66,129.79,129.77,9.78882769]
[1763426570844,9.56020715,129.87,129.77,9.56020715]
[1763426570845,10.22020715,129.82,129.77,9.56020715]
[1763426571002,10.22020715,129.82,129.76,9.78882769]
[1763426571206,9.56020715,129.8,129.76,9.78882769]
[1763426571417,0.66,129.81,129.75,19.34903484]
[1763426571618,9.56020715,129.8,129.75,19.34903484]
[1763426572223,0.66,129.79,129.75,19.34903484]
[1763426572412,10.22020715,129.79,129.73,9.78882769]
[1763426572605,10.22020715,129.79,129.73,19.34903484]
[1763426572606,9.56020715,129.78,129.73,19.34903484]
[1763426572935,9.56020715,129.77,129.72,19.34903484]
[1763426573232,0.66,129.77,129.73,9.56020715]
[1763426573423,9.56020715,129.79,129.75,9.78882769]
[1763426573741,18.12096,129.84,129.77,19.34903484]
[1763426573913,9.56020715,129.81,129.77,19.34903484]
[1763426574242,9.56020715,129.8,129.75,19.34903484]
[1763426574604,10.22020715,129.8,129.75,19.76903484]
[1763426574804,0.66,129.8,129.75,19.76903484]
[1763426575017,0.66,129.8,129.72,24.56316417]
[1763426575018,9.56020715,129.81,129.78,9.78882769]
[1763426575412,10.22020715,129.81,129.77,19.34903484]
[1763426575613,0.66,129.81,129.77,19.34903484]
[1763426575928,9.56020715,129.83,129.8,9.78882769]
[1763426576129,9.56020715,129.81,129.75,9.56020715]
[1763426576337,0.66,129.84,129.75,9.56020715]
[1763426576338,9.56020715,129.8,129.75,9.56020715]
[1763426576520,9.56020715,129.8,129.76,9.78882769]
[1763426576842,10.22020715,129.79,129.73,9.78882769]
[1763426577001,10.22020715,129.79,129.75,9.78882769]
[1763426577203,9.56020715,129.78,129.71,24.98316417]
[1763426577440,9.56020715,129.77,129.72,9.78882769]
[1763426577736,0.66,129.77,129.71,9.56020715]
[1763426577906,10.22020715,129.76,129.71,9.56020715]
[1763426578114,18.78096,129.8,129.72,19.34903484]
[1763426578331,9.56020715,129.77,129.72,19.34903484]
[1763426578850,10.22020715,129.76,129.72,9.78882769]
[1763426579638,0.66,129.78,129.72,10.20882769]
[1763426579838,9.56020715,129.77,129.72,19.76903484]
[1763426580224,20.12096,129.83,129.69,6.44220417]
[1763426580543,9.56020715,129.71,129.66,6.44220417]
[1763426580760,18.12096,129.74,129.65,0.42]
[1763426581048,9.56020715,129.72,129.68,9.78882769]
[1763426581235,9.56020715,129.71,129.65,9.98020715]
[1763426581414,9.56020715,129.71,129.66,9.78882769]
[1763426581726,9.56020715,129.74,129.7,9.78882769]
[1763426582528,4.02927873,129.76,129.72,19.34903484]
[1763426583048,4.02927873,129.76,129.74,9.78882769]
[1763426583238,4.02927873,129.76,129.74,19.34903484]
[1763426583434,9.56020715,129.78,129.72,10.20882769]
[1763426583618,9.56020715,129.78,129.73,9.56020715]
[1763426583823,9.56020715,129.78,129.73,9.98020715]
[1763426584146,9.56020715,129.78,129.74,0.42]
[1763426584444,10.22020715,129.79,129.75,9.78882769]
[1763426584645,9.56020715,129.78,129.75,9.78882769]
[1763426584948,9.56020715,129.77,129.73,9.78882769]
[1763426585155,10.22020715,129.77,129.73,9.78882769]
[1763426585325,9.56020715,129.78,129.73,10.20882769]
[1763426585648,9.56020715,129.78,129.73,19.76903484]
[1763426585956,4.0288986,129.81,129.75,19.34903484]
[1763426585957,9.56020715,129.8,129.75,19.34903484]
[1763426586117,9.56020715,129.8,129.75,9.78882769]
[1763426586317,10.22020715,129.8,129.75,19.76903484]
[1763426586748,13.58910575,129.81,129.77,9.78882769]
[1763426586922,10.22020715,129.81,129.77,9.78882769]
[1763426587343,0.66,129.8,129.77,9.78882769]
[1763426587949,0.66,129.82,129.77,19.76903484]
[1763426588147,10.22020715,129.82,129.77,19.34903484]
[1763426588344,10.22020715,129.82,129.72,27.89]
[1763426588345,9.56020715,129.8,129.75,9.98020715]
[1763426588535,10.22020715,129.81,129.77,9.78882769]
[1763426589338,10.22020715,129.83,129.79,9.78882769]
[1763426589648,9.56020715,129.8,129.72,5.08]
[1763426589949,10.22020715,129.8,129.75,9.56020715]
[1763426590325,10.22020715,129.8,129.76,9.78882769]
[1763426590530,9.56020715,129.81,129.78,9.78882769]
[1763426590737,9.56020715,129.82,129.78,9.78882769]
[1763426591055,9.56020715,129.81,129.73,9.78882769]
[1763426591222,0.66,129.82,129.73,9.78882769]
[1763426591426,9.56020715,129.78,129.73,19.34903484]
[1763426591658,0.66,129.83,129.73,19.76903484]
[1763426591839,0.67,129.83,129.76,9.78882769]
[1763426592037,9.56020715,129.79,129.76,9.78882769]
[1763426592244,9.56020715,129.77,129.71,0.42]
[1763426592452,9.56020715,129.75,129.7,9.56020715]
[1763426592638,9.56020715,129.72,129.65,9.00057269]
[1763426592956,10.23020715,129.72,129.67,9.56020715]
[1763426593267,0.67,129.74,129.66,0.42]
[1763426593430,9.56020715,129.73,129.68,9.56020715]
[1763426593630,9.56020715,129.73,129.69,9.56020715]
[1763426593932,10.23020715,129.74,129.69,9.56020715]
[1763426594256,9.56020715,129.72,129.7,9.78882769]
[1763426594460,27.68116715,129.78,129.63,0.42]
[1763426594461,10.23020715,129.71,129.63,0.42]
[1763426594755,9.56020715,129.67,129.62,1.65593088]
[1763426594937,18.79096,129.71,129.62,11.21613803]
[1763426594938,0.67,129.7,129.62,11.21613803]
[1763426595137,10.23020715,129.69,129.64,9.56020715]
[1763426595459,10.23020715,129.69,129.66,9.78882769]
[1763426595645,0.67,129.68,129.64,47.74215125]
[1763426595854,0.67,129.68,129.65,9.78882769]
[1763426596157,0.67,129.68,129.62,1.65593088]
[1763426596158,9.56020715,129.66,129.62,1.65593088]
[1763426596376,9.56020715,129.64,129.62,1.65593088]
[1763426596531,0.67,129.67,129.62,1.65593088]
[1763426596732,0.67,129.67,129.62,11.21613803]
[1763426596956,0.67,129.67,129.62,1.65593088]
[1763426597148,9.56020715,129.66,129.62,1.65593088]
[1763426597349,9.56020715,129.66,129.63,9.78882769]
[1763426597730,9.56020715,129.66,129.62,1.65593088]
[1763426597731,0.67,129.65,129.62,1.65593088]
[1763426597931,0.67,129.65,129.63,9.78882769]
[1763426598147,0.67,129.65,129.62,1.65593088]
[1763426598328,0.67,129.65,129.62,11.21613803]
[1763426598662,10.23020715,129.65,129.62,1.65593088]
[1763426598972,0.67,129.65,129.63,9.78882769]
[1763426599275,0.7,129.65,129.63,9.78882769]
[1763426599434,0.7,129.68,129.64,9.56020715]
[1763426599776,9.56020715,129.68,129.63,9.78882769]
[1763426600059,10.26020715,129.68,129.63,9.78882769]
[1763426600261,0.7,129.67,129.63,9.78882769]
[1763426600466,0.7,129.67,129.63,19.34903484]
[1763426600876,2.81526747,129.76,129.66,6.11821556]
[1763426600877,0.7,129.72,129.66,6.11821556]
[1763426601090,0.7,129.72,129.68,6.11821556]
[1763426601373,6.81821556,129.74,129.69,6.11821556]
[1763426601592,6.11821556,129.73,129.68,6.11821556]
[1763426601759,0.7,129.77,129.69,6.11821556]
[1763426601960,2.7,129.76,129.63,0.42]
[1763426602173,6.11821556,129.71,129.64,9.78882769]
[1763426602371,18.82096,129.75,129.67,15.90704325]
[1763426602556,6.11821556,129.72,129.67,15.90704325]
[1763426602872,6.11821556,129.71,129.67,9.78882769]
[1763426603256,0.7,129.7,129.67,9.78882769]
[1763426603468,0.7,129.7,129.67,6.11821556]
[1763426603698,0.7,129.73,129.69,9.78882769]
[1763426603989,6.11821556,129.75,129.71,9.78882769]
[1763426604476,6.81821556,129.74,129.69,6.11821556]
[1763426604682,6.11821556,129.73,129.69,6.11821556]
[1763426604855,6.81821556,129.73,129.66,9.78882769]
[1763426605061,6.11821556,129.71,129.66,6.11821556]
[1763426605258,6.11821556,129.71,129.63,9.78882769]
[1763426605457,6.81821556,129.71,129.67,6.11821556]
[1763426605653,2.0,129.76,129.67,6.11821556]
[1763426605877,6.11821556,129.72,129.67,6.11821556]
[1763426606086,6.11821556,129.72,129.66,9.78882769]
[1763426606087,6.11821556,129.71,129.66,6.11821556]
[1763426606292,6.11821556,129.7,129.63,10.20882769]
[1763426606470,6.11821556,129.71,129.66,15.90704325]
[1763426606981,0.7,129.7,129.67,6.11821556]
[1763426607362,0.7,129.7,129.68,6.11821556]
[1763426607576,0.7,129.7,129.69,6.11821556]
[1763426607789,6.11821556,129.73,129.69,6.11821556]
[1763426607983,0.7,129.72,129.69,6.11821556]
[1763426608200,6.11821556,129.73,129.71,6.11821556]
[1763426608201,0.7,129.73,129.71,6.11821556]
[1763426608391,0.7,129.75,129.72,6.11821556]
[1763426608698,0.7,129.75,129.74,15.90704325]
[1763426609083,0.7,129.75,129.69,0.42]
[1763426609084,0.7,129.75,129.73,6.11821556]
[1763426609279,0.7,129.75,129.73,9.78882769]
[1763426609477,0.7,129.75,129.68,9.78882769]
[1763426609683,0.7,129.75,129.72,6.11821556]
[1763426611397,0.7,129.75,129.71,6.11821556]
[1763426611601,6.81821556,129.75,129.67,9.78882769]
[1763426611816,0.7,129.75,129.71,6.11821556]
[1763426612006,0.7,129.74,129.71,6.11821556]
[1763426612192,0.7,129.74,129.7,6.11821556]
[1763426612386,0.7,129.74,129.72,6.11821556]
[1763426612597,0.7,129.74,129.71,9.78882769]
[1763426612785,0.7,129.74,129.71,6.11821556]
[1763426613112,6.81821556,129.74,129.63,8.58057269]
[1763426613309,6.11821556,129.72,129.67,6.11821556]
[1763426613697,0.7,129.73,129.68,6.11821556]
[1763426613698,0.7,129.71,129.68,6.11821556]
[1763426613903,0.7,129.71,129.63,0.42]
[1763426614084,0.7,129.71,129.66,6.11821556]
[1763426614283,0.7,129.71,129.67,6.11821556]
[1763426614516,0.7,129.71,129.69,6.11821556]
[1763426614816,0.7,129.71,129.63,0.42]
[1763426614817,0.7,129.71,129.68,6.11821556]
[1763426615000,0.7,129.71,129.69,6.11821556]
[1763426615204,0.7,129.71,129.68,6.11821556]
[1763426615730,0.7,129.71,129.66,9.78882769]
[1763426616035,0.7,129.71,129.68,6.11821556]
[1763426616418,0.7,129.71,129.69,9.78882769]
[1763426616740,6.11821556,129.7,129.65,6.11821556]
[1763426616917,6.11821556,129.68,129.62,1.65593088]
[1763426617126,0.7,129.7,129.63,9.78882769]
[1763426617426,6.11821556,129.68,129.63,15.90704325]
[1763426617624,0.7,129.67,129.63,15.90704325]
[1763426617838,0.7,129.67,129.63,9.78882769]
[1763426618141,0.7,129.67,129.63,15.90704325]
[1763426618341,0.7,129.67,129.64,6.11821556]
[1763426618512,0.7,129.67,129.65,9.78882769]
[1763426619654,6.81821556,129.67,129.63,9.78882769]
[1763426620137,0.7,129.66,129.63,9.78882769]
[1763426620650,6.81821556,129.66,129.62,1.65593088]
[1763426620850,0.7,129.66,129.62,7.77414644]
[1763426621060,6.11821556,129.69,129.64,15.90704325]
[1763426621263,102.7,129.77,129.64,9.78882769]
[1763426621264,0.7,129.7,129.64,9.78882769]
[1763426621469,6.11821556,129.71,129.67,9.78882769]
[1763426621776,0.72,129.72,129.69,9.78882769]
[1763426622058,6.11821556,129.7,129.65,6.11821556]
[1763426622439,0.72,129.69,129.65,6.11821556]
[1763426622828,6.83821556,129.69,129.65,6.11821556]
[1763426623027,0.72,129.69,129.65,9.78882769]
[1763426623233,6.11821556,129.67,129.62,1.65593088]
[1763426623453,0.72,129.68,129.62,1.65593088]
[1763426623454,0.72,129.68,129.63,15.90704325]
[1763426623659,0.72,129.68,129.63,9.78882769]
[1763426623660,6.11821556,129.67,129.63,9.78882769]
[1763426623856,6.11821556,129.66,129.62,7.77414644]
[1763426624057,6.83821556,129.67,129.62,1.65593088]
[1763426624358,6.11821556,129.66,129.62,1.65593088]
[1763426624532,0.72,129.66,129.62,1.65593088]
[1763426624732,0.72,129.69,129.64,6.11821556]
[1763426624934,0.72,129.71,129.66,6.11821556]
[1763426625256,6.11821556,129.69,129.63,9.78882769]
[1763426625456,6.11821556,129.69,129.65,9.78882769]
[1763426625648,0.72,129.68,129.65,15.90704325]
[1763426625846,0.72,129.68,129.65,6.11821556]
[1763426626564,0.72,129.68,129.66,6.11821556]
[1763426626770,0.72,129.68,129.65,6.11821556]
[1763426627067,0.72,129.68,129.65,15.90704325]
[1763426627260,0.72,129.68,129.63,9.78882769]
[1763426627440,0.72,129.68,129.65,9.78882769]
[1763426627654,6.83821556,129.68,129.63,15.90704325]
[1763426627836,6.83821556,129.68,129.64,15.90704325]
[1763426628032,0.72,129.67,129.64,15.90704325]
[1763426628342,0.72,129.69,129.66,6.11821556]
[1763426628542,0.72,129.68,129.66,6.11821556]
[1763426628748,0.72,129.68,129.66,9.78882769]
[1763426629462,0.72,129.68,129.66,15.90704325]
[1763426630602,0.72,129.68,129.66,6.11821556]
[1763426631960,0.72,129.68,129.63,9.78882769]
[1763426631961,6.83821556,129.68,129.63,9.78882769]
[1763426632157,0.72,129.68,129.64,6.11821556]
[1763426632342,0.72,129.67,129.64,6.11821556]
[1763426633656,0.72,129.67,129.63,9.78882769]
[1763426633860,0.72,129.67,129.64,6.11821556]
[1763426634469,0.72,129.67,129.62,1.65593088]
[1763426634470,0.72,129.67,129.66,9.78882769]
[1763426636570,0.72,129.69,129.66,6.11821556]
[1763426636775,0.72,129.69,129.67,6.11821556]
[1763426637075,0.72,129.69,129.66,6.11821556]
[1763426637785,0.72,129.69,129.63,10.20882769]
[1763426638115,0.72,129.69,129.66,6.11821556]
[1763426638483,6.83821556,129.69,129.65,6.11821556]
[1763426638686,6.83821556,129.69,129.66,9.78882769]
[1763426638877,0.72,129.68,129.66,9.78882769]
[1763426639584,0.72,129.69,129.66,9.78882769]
[1763426640778,0.72,129.69,129.65,6.11821556]
[1763426641003,6.11821556,129.68,129.64,9.78882769]
[1763426641371,0.72,129.67,129.64,9.78882769]
[1763426641592,6.83821556,129.67,129.62,7.77414644]
[1763426641795,6.83821556,129.67,129.62,1.65593088]
[1763426642005,6.83821556,129.67,129.62,7.77414644]
[1763426642211,0.72,129.66,129.62,7.77414644]
[1763426642390,6.11821556,129.67,129.62,2.07593088]
[1763426642727,0.72,129.75,129.62,2.07593088]
[1763426642728,6.11821556,129.65,129.62,1.65593088]
[1763426642880,10.9751087,129.75,129.62,1.65593088]
[1763426642881,6.11821556,129.63,129.62,1.65593088]
[1763426643220,0.72,129.74,129.63,10.20882769]
[1763426643394,6.11821556,129.69,129.65,9.78882769]
[1763426643594,10.2551087,129.77,129.67,9.78882769]
[1763426643802,0.72,129.76,129.71,6.11821556]
[1763426644095,6.11821556,129.74,129.7,9.78882769]
[1763426644280,0.72,129.76,129.65,7.17507872]
[1763426644281,2.0,129.75,129.65,7.17507872]
[1763426644481,0.72,129.75,129.66,0.68]
[1763426644790,18.84096,129.76,129.69,6.11821556]
[1763426645006,18.84096,129.76,129.7,0.68]
[1763426645206,6.11821556,129.72,129.68,6.79821556]
[1763426645407,6.11821556,129.73,129.69,0.68]
[1763426645623,6.11821556,129.72,129.69,0.68]
[1763426646109,0.72,129.75,129.69,6.79821556]
[1763426646285,0.72,129.77,129.7,15.90704325]
[1763426646485,6.11821556,129.76,129.71,6.11821556]
[1763426646688,0.72,129.77,129.7,10.46882769]
[1763426646903,6.11821556,129.75,129.69,9.78882769]
[1763426647090,6.11821556,129.75,129.71,6.11821556]
[1763426647289,6.83821556,129.75,129.71,6.11821556]
[1763426647706,6.83821556,129.75,129.7,6.11821556]
[1763426647906,6.83821556,129.75,129.71,6.11821556]
[1763426648114,6.83821556,129.75,129.71,6.79821556]
[1763426648115,0.72,129.75,129.71,6.79821556]
[1763426648298,0.72,129.77,129.72,6.79821556]
[1763426648615,6.11821556,129.76,129.72,6.11821556]
[1763426648789,6.11821556,129.76,129.71,15.90704325]
[1763426649097,6.83821556,129.76,129.71,15.90704325]
[1763426649294,6.83821556,129.76,129.71,16.58704325]
[1763426649500,6.83821556,129.76,129.72,6.11821556]
[1763426649723,0.72,129.75,129.71,16.58704325]
[1763426649894,6.83821556,129.76,129.72,6.11821556]
[1763426650104,0.72,129.76,129.73,6.11821556]
[1763426650625,4.02424441,129.75,129.74,6.79821556]
[1763426650915,4.02424441,129.75,129.74,16.58704325]
[1763426651114,0.72,129.8,129.74,16.58704325]
[1763426651316,6.83821556,129.79,129.74,9.78882769]
[1763426651488,4.0237772,129.75,129.7,0.68]
[1763426651688,6.11821556,129.77,129.72,6.11821556]
[1763426651917,6.83821556,129.78,129.73,6.11821556]
[1763426652089,4.02405978,129.74,129.73,9.78882769]
[1763426652295,6.11821556,129.76,129.72,9.78882769]
[1763426652597,4.02424344,129.74,129.72,15.90704325]
[1763426652796,4.02424344,129.74,129.72,9.78882769]
[1763426653004,4.02424344,129.74,129.72,15.90704325]
[1763426653300,4.02424344,129.74,129.72,16.57704325]
[1763426653487,4.02424344,129.74,129.71,15.90704325]
[1763426653907,4.02424344,129.74,129.71,16.57704325]
[1763426654092,4.02424344,129.74,129.71,10.45882769]
[1763426654407,4.02424344,129.74,129.71,16.57704325]
[1763426654618,4.02424344,129.74,129.72,6.11821556]
[1763426654824,4.02424344,129.74,129.72,6.78821556]
[1763426654990,4.02424344,129.74,129.69,16.27266808]
[1763426655195,4.02424344,129.74,129.72,6.11821556]
[1763426655412,4.02424344,129.74,129.72,6.78821556]
[1763426656088,6.77821556,129.8,129.73,6.78821556]
[1763426656297,6.50209627,129.89,129.76,6.11821556]
[1763426656298,6.11821556,129.81,129.76,6.11821556]
[1763426656510,4.02416674,129.77,129.76,16.57704325]
[1763426656794,0.66,129.81,129.77,10.45882769]
[1763426657006,4.02397529,129.79,129.77,16.57704325]
[1763426657514,4.02397529,129.79,129.78,16.57704325]
[1763426658106,4.02397529,129.79,129.78,15.90704325]
[1763426658528,4.02397529,129.79,129.77,6.77821556]
[1763426658830,0.65,129.78,129.73,0.66]
[1763426659007,0.65,129.78,129.75,9.78882769]
[1763426659405,0.65,129.78,129.75,6.11821556]
[1763426659993,4.02397529,129.79,129.74,9.78882769]
[1763426660200,0.65,129.78,129.7,6.48384039]
[1763426660424,0.65,129.78,129.74,6.11821556]
[1763426660816,0.65,129.78,129.75,9.57197202]
[1763426661202,0.65,129.78,129.74,9.57197202]
[1763426661406,0.65,129.78,129.75,9.57197202]
[1763426661808,0.65,129.78,129.73,9.78882769]
[1763426662135,0.65,129.78,129.75,9.57197202]
[1763426662741,4.02397529,129.79,129.76,20.02079971]
[1763426662924,4.02397529,129.79,129.78,9.57197202]
[1763426663099,4.02397529,129.79,129.78,19.36079971]
[1763426663295,0.65,129.82,129.78,19.36079971]
[1763426663517,0.65,129.82,129.79,19.36079971]
[1763426663798,10.22197202,129.82,129.76,9.78882769]
[1763426664026,10.22197202,129.82,129.78,9.78882769]
[1763426664244,9.57197202,129.8,129.71,24.60480039]
[1763426664440,9.57197202,129.79,129.72,0.66]
[1763426664737,9.57197202,129.79,129.74,9.57197202]
[1763426664945,10.22197202,129.79,129.74,9.57197202]
[1763426665104,10.22197202,129.79,129.72,0.66]
[1763426665105,0.65,129.78,129.72,0.66]
[1763426665304,10.22197202,129.78,129.73,9.57197202]
[1763426665516,0.65,129.77,129.73,19.36079971]
[1763426665833,0.65,129.8,129.75,9.57197202]
[1763426666035,9.57197202,129.81,129.76,19.36079971]
[1763426666338,0.65,129.8,129.76,19.36079971]
[1763426666818,0.65,129.8,129.77,9.57197202]
[1763426667144,0.65,129.8,129.76,9.57197202]
[1763426667310,0.65,129.8,129.77,9.78882769]
[1763426668407,10.22197202,129.8,129.77,9.78882769]
[1763426668733,9.57197202,129.79,129.74,9.78882769]
[1763426668911,10.22197202,129.79,129.74,19.36079971]
[1763426669253,9.57197202,129.8,129.76,9.78882769]
[1763426669422,9.57197202,129.8,129.75,19.36079971]
[1763426669747,0.65,129.8,129.77,9.78882769]
[1763426670443,9.57197202,129.79,129.74,9.57197202]
[1763426670611,0.65,129.8,129.75,19.36079971]
[1763426670612,10.22197202,129.8,129.75,19.36079971]
[1763426671018,10.22197202,129.8,129.75,20.02079971]
[1763426671215,9.57197202,129.8,129.75,20.02079971]
[1763426671432,9.57197202,129.8,129.76,9.57197202]
[1763426671738,10.22197202,129.8,129.76,9.57197202]
[1763426671934,0.65,129.8,129.77,9.78882769]
[1763426672140,10.22197202,129.79,129.73,0.66]
[1763426672309,10.22197202,129.79,129.74,9.78882769]
[1763426672623,10.22197202,129.79,129.74,19.36079971]
[1763426672802,10.22197202,129.78,129.74,9.78882769]
[1763426673005,9.57197202,129.76,129.72,9.78882769]
[1763426673408,10.22197202,129.76,129.72,9.78882769]
[1763426673640,0.65,129.76,129.72,10.23197202]
[1763426674333,0.65,129.76,129.67,16.25230334]
[1763426674521,10.22197202,129.76,129.68,9.78882769]
[1763426674715,10.22197202,129.76,129.68,0.66]
[1763426674936,0.65,129.79,129.75,9.78882769]
[1763426675438,0.65,129.79,129.75,20.02079971]
[1763426676012,9.57197202,129.78,129.72,9.78882769]
[1763426676213,9.57197202,129.78,129.73,9.57197202]
[1763426676431,10.22197202,129.78,129.74,9.78882769]
[1763426676741,0.65,129.77,129.74,9.78882769]
[1763426677236,10.22197202,129.77,129.74,9.78882769]
[1763426677417,9.57197202,129.76,129.72,9.78882769]
[1763426677740,10.22197202,129.76,129.72,9.78882769]
[1763426677944,0.65,129.75,129.72,9.78882769]
[1763426678807,9.57197202,129.76,129.72,9.57197202]
[1763426679009,9.57197202,129.78,129.73,19.36079971]
[1763426679238,9.57197202,129.78,129.67,34.37326334]
[1763426679239,10.22197202,129.79,129.74,9.57197202]
[1763426679455,10.22197202,129.79,129.75,9.78882769]
[1763426679612,18.12096,129.8,129.71,0.66]
[1763426679613,9.57197202,129.77,129.71,0.66]
[1763426679813,9.57197202,129.76,129.72,19.36079971]
[1763426680120,0.65,129.77,129.72,19.36079971]
[1763426680322,18.77096,129.79,129.74,19.36079971]
[1763426680519,0.65,129.78,129.74,19.36079971]
[1763426680719,10.22197202,129.78,129.74,19.36079971]
[1763426681020,0.65,129.78,129.74,19.36079971]
[1763426681222,9.57197202,129.78,129.74,19.36079971]
[1763426681532,10.22197202,129.78,129.74,9.78882769]
[1763426681715,10.22197202,129.77,129.68,6.46347565]
[1763426681914,9.57197202,129.76,129.73,9.78882769]
[1763426682133,0.7,129.76,129.73,9.78882769]
[1763426682341,0.7,129.75,129.73,9.78882769]
[1763426683414,0.7,129.75,129.71,0.67]
[1763426683647,10.27197202,129.75,129.72,9.78882769]
[1763426683956,9.57197202,129.76,129.72,19.36079971]
[1763426684125,9.57197202,129.76,129.72,9.78882769]
[1763426684319,0.7,129.75,129.72,19.36079971]
[1763426684629,10.27197202,129.77,129.72,19.36079971]
[1763426684820,0.7,129.76,129.72,19.36079971]
[1763426685921,10.27197202,129.76,129.72,19.36079971]
[1763426686348,10.27197202,129.76,129.72,9.78882769]
[1763426686554,10.27197202,129.76,129.72,19.36079971]
[1763426686555,0.7,129.75,129.72,19.36079971]
[1763426686847,18.12096,129.78,129.74,9.78882769]
[1763426686848,28.39293202,129.78,129.74,9.78882769]
[1763426687021,9.57197202,129.79,129.74,19.36079971]
[1763426687220,10.27197202,129.8,129.76,9.78882769]
[1763426687547,10.27197202,129.8,129.76,20.03079971]
[1763426687548,0.7,129.8,129.76,20.03079971]
[1763426688049,0.7,129.8,129.74,10.45882769]
[1763426688232,10.27197202,129.8,129.76,19.36079971]
[1763426688427,0.7,129.8,129.76,19.36079971]
[1763426688743,0.7,129.8,129.76,20.03079971]
[1763426688744,10.27197202,129.8,129.76,20.03079971]
[1763426690830,9.57197202,129.82,129.78,9.78882769]
[1763426691024,4.02387482,129.83,129.8,9.57197202]
[1763426691225,4.02387482,129.83,129.82,19.36079971]
[1763426691550,10.27197202,129.87,129.8,9.78882769]
[1763426691751,4.02348867,129.86,129.82,9.57197202]
[1763426692049,4.02348867,129.86,129.83,9.78882769]
[1763426692244,4.02348867,129.86,129.83,20.03079971]
[1763426693032,4.02348867,129.86,129.85,9.78882769]
[1763426693247,0.2,129.89,129.85,19.36079971]
[1763426693454,4.02325577,129.88,129.87,9.78882769]
[1763426694032,0.2,129.89,129.87,20.03079971]
[1763426694230,0.2,129.89,129.87,9.57197202]
[1763426694535,10.47197202,129.89,129.86,9.78882769]
[1763426694930,0.7,129.88,129.85,9.78882769]
[1763426695537,10.27197202,129.88,129.82,9.78882769]
[1763426695746,9.57197202,129.87,129.84,9.78882769]
[1763426695952,0.7,129.87,129.84,9.78882769]
[1763426697270,0.7,129.87,129.77,18.12096]
[1763426697271,9.57197202,129.86,129.8,9.78882769]
[1763426697427,9.57197202,129.83,129.79,9.57197202]
[1763426697632,9.57197202,129.82,129.77,10.24197202]
[1763426697944,9.57197202,129.83,129.79,9.78882769]
[1763426698139,9.57197202,129.82,129.79,9.78882769]
[1763426698346,9.57197202,129.81,129.78,9.78882769]
[1763426698947,0.7,129.8,129.78,9.78882769]
[1763426699132,0.7,129.8,129.77,9.78882769]
[1763426700288,0.7,129.8,129.76,9.57197202]
[1763426700566,18.12096,129.84,129.77,9.78882769]